bitfinex/quotes_SOLUSD_20240612
["timestamp","ask_amount","ask_price","bid_price","bid_amount"]
[1718221223881,20.0,154.36,154.2,108.3748]
[1718221224084,0.17,154.39,154.26,2.3985]
[1718221224389,0.17,154.39,154.2,8.3748]
[1718221224390,0.17,154.37,154.25,2.3986]
[1718221224584,20.68,154.37,154.2,8.3748]
[1718221224883,20.68,154.37,154.25,2.3986]
[1718221225188,20.68,154.37,154.2,8.3748]
[1718221225189,20.0,154.37,154.3,2.3979]
[1718221225391,0.17,154.38,154.24,4.7975]
[1718221225609,0.17,154.39,154.28,2.3982]
[1718221225897,0.3954,154.4,154.3,2.3978]
[1718221226285,6.64856758,154.45,154.25,0.17]
[1718221226600,127.82,154.43,154.24,0.17]
[1718221226775,19.3,154.42,154.22,20.0]
[1718221226973,47.12,154.39,154.27,2.3983]
[1718221227274,47.12,154.39,154.21,0.17]
[1718221227275,47.12,154.35,154.21,2.3993]
[1718221227475,0.3954,154.34,154.17,121.4715]
[1718221227680,0.3954,154.34,154.26,2.3985]
[1718221227900,0.3954,154.34,154.19,100.0]
[1718221228202,27.82,154.44,154.2,100.0]
[1718221228507,27.82,154.44,154.27,2.3982]
[1718221228706,27.82,154.44,154.23,4.9679]
[1718221228707,27.82,154.4,154.23,2.3988]
[1718221228929,19.3,154.39,154.2,100.0]
[1718221229203,27.82,154.4,154.26,4.797]
[1718221229400,27.82,154.4,154.21,0.34]
[1718221229401,27.82,154.44,154.29,7.1941]
[1718221229605,26.313017,154.46,154.26,100.0]
[1718221229806,26.313017,154.46,154.32,4.7951]
[1718221230011,26.313017,154.46,154.36,2.3969]
[1718221230176,26.313017,154.46,154.35,2.397]
[1718221230379,0.3954,154.46,154.31,2.3976]
[1718221230605,26.312159,154.46,154.27,0.34]
[1718221230809,45.612159,154.46,154.35,2.397]
[1718221230999,0.3954,154.46,154.28,0.34]
[1718221231200,0.3954,154.46,154.33,2.3974]
[1718221231383,26.311893,154.46,154.28,0.17]
[1718221231585,0.3954,154.46,154.3,100.0]
[1718221231795,20.3954,154.46,154.32,0.17]
[1718221232003,20.3954,154.46,154.37,2.3967]
[1718221232192,20.3954,154.46,154.38,2.3966]
[1718221232512,0.3954,154.46,154.34,4.7943]
[1718221232819,0.3954,154.46,154.35,4.7942]
[1718221232995,0.3954,154.46,154.32,2.3974]
[1718221233183,0.3954,154.46,154.21,27.82]
[1718221233184,0.17,154.42,154.23,22.7532]
[1718221233380,0.17,154.42,154.31,4.7954]
[1718221233614,0.17,154.45,154.27,100.0]
[1718221233830,0.3954,154.46,154.29,100.0]
[1718221234116,0.17,154.45,154.33,2.3973]
[1718221234282,0.34,154.45,154.25,100.0]
[1718221234484,0.34,154.45,154.27,100.0]
[1718221234485,0.17,154.45,154.27,100.0]
[1718221234702,0.34,154.45,154.31,2.3976]
[1718221234979,0.34,154.45,154.23,122.7532]
[1718221234980,19.47,154.43,154.29,2.398]
[1718221235187,19.47,154.41,154.24,4.7974]
[1718221235481,20.0,154.4,154.23,122.7532]
[1718221235680,0.3954,154.46,154.34,2.3971]
[1718221235894,0.34,154.45,154.24,100.0]
[1718221236096,0.3954,154.46,154.26,100.0]
[1718221236297,0.3954,154.46,154.26,200.0]
[1718221236502,0.3954,154.46,154.34,2.3972]
[1718221236690,0.3954,154.46,154.28,0.17]
[1718221237009,0.3954,154.46,154.27,20.51]
[1718221237010,19.6954,154.46,154.27,20.51]
[1718221237183,19.3,154.42,154.23,22.7532]
[1718221237386,0.17,154.38,154.21,9.0117]
[1718221237697,0.17,154.38,154.17,21.8908]
[1718221237905,0.17,154.36,154.18,100.0]
[1718221238206,0.17,154.36,154.17,21.8908]
[1718221238207,20.0,154.36,154.22,100.0]
[1718221238419,20.0,154.38,154.26,11.9924]
[1718221238615,0.17,154.37,154.21,100.0]
[1718221238920,0.17,154.39,154.23,100.0]
[1718221239226,0.17,154.41,154.23,100.0]
[1718221239509,0.34,154.41,154.23,100.0]
[1718221239717,0.34,154.41,154.32,2.3975]
[1718221239902,0.34,154.41,154.24,0.17]
[1718221239903,0.17,154.41,154.24,0.17]
[1718221240094,19.8354,154.46,154.34,2.3972]
[1718221240298,19.8354,154.46,154.28,100.0]
[1718221240515,0.3954,154.46,154.37,2.3968]
[1718221240808,0.3954,154.46,154.32,2.3976]
[1718221241012,127.82,154.39,154.21,1.11795996]
[1718221241218,19.44,154.38,154.24,2.3987]
[1718221241515,19.44,154.34,154.22,2.3991]
[1718221241719,9.51672331,154.29,154.19,4.799]
[1718221242033,19.44,154.34,154.21,2.3992]
[1718221242216,27.82,154.35,154.12,3.0]
[1718221242217,9.51872114,154.27,154.12,3.0]
[1718221242389,9.51872114,154.26,154.13,100.0]
[1718221242587,9.51872114,154.26,154.15,100.0]
[1718221242892,9.51872114,154.26,154.12,3.0]
[1718221242893,9.51872114,154.27,154.25,2.3985]
[1718221243198,0.3954,154.37,154.27,2.3983]
[1718221243199,9.51872114,154.29,154.27,2.3983]
[1718221243397,9.51872114,154.29,154.19,100.0]
[1718221243398,9.51872114,154.29,154.26,2.3984]
[1718221243609,0.3954,154.37,154.27,2.3983]
[1718221243786,0.3954,154.37,154.2,0.17]
[1718221243988,0.3954,154.37,154.28,2.3981]
[1718221244494,19.8354,154.37,154.28,2.3981]
[1718221244689,20.0,154.36,154.27,2.3983]
[1718221244888,20.0,154.36,154.28,2.398]
[1718221245119,0.3954,154.37,154.32,2.3975]
[1718221245295,0.3954,154.37,154.29,4.7959]
[1718221245499,0.3954,154.37,154.24,20.0]
[1718221245699,18.67133448,154.36,154.25,100.51]
[1718221245918,0.3954,154.37,154.31,2.3977]
[1718221245919,56.01780008,154.35,154.31,2.3977]
[1718221246119,56.01780008,154.34,154.25,100.51]
[1718221246325,9.51620849,154.26,154.25,100.68]
[1718221246838,37.3464656,154.41,154.26,0.17]
[1718221247058,1.3838,154.42,154.26,0.17]
[1718221247059,1.3838,154.42,154.35,9.72011327]
[1718221247339,1.3838,154.42,154.26,0.17]
[1718221247340,1.3838,154.42,154.36,9.72011327]
[1718221247706,1.3838,154.42,154.34,9.71979891]
[1718221247902,1.3838,154.42,154.35,13.27677647]
[1718221248220,1.3838,154.42,154.26,13.27677647]
[1718221248544,0.17,154.41,154.27,13.61677647]
[1718221248829,21.3838,154.42,154.28,13.27677647]
[1718221249033,20.0,154.41,154.28,13.27677647]
[1718221249229,0.17,154.41,154.27,0.34]
[1718221249431,0.17,154.41,154.26,0.34]
[1718221249635,0.17,154.41,154.23,30.8331]
[1718221249806,0.34,154.41,154.24,9.33198161]
[1718221250205,1.3838,154.42,154.25,100.0]
[1718221250428,1.3838,154.42,154.27,100.0]
[1718221251051,1.3838,154.42,154.28,0.68]
[1718221251428,9.49601819,154.41,154.28,0.68]
[1718221251728,9.49601819,154.4,154.28,0.68]
[1718221252454,9.49601819,154.41,154.28,0.68]
[1718221252639,9.49601819,154.41,154.28,0.51]
[1718221252947,1.3838,154.42,154.23,30.8331]
[1718221252948,0.17,154.39,154.23,30.8331]
[1718221253245,29.49601819,154.4,154.24,100.0]
[1718221253458,9.49601819,154.39,154.23,30.8331]
[1718221253638,20.0,154.38,154.23,30.8331]
[1718221253840,20.0,154.38,154.24,100.0]
[1718221254036,9.49601819,154.39,154.23,30.8331]
[1718221254037,9.49601819,154.39,154.26,100.0]
[1718221254340,9.49601819,154.4,154.27,0.51]
[1718221254537,9.49601819,154.41,154.28,0.34]
[1718221254733,29.49601819,154.4,154.27,0.17]
[1718221254945,29.49601819,154.4,154.25,0.17]
[1718221255156,29.49601819,154.4,154.07,32.80215775]
[1718221255157,19.44,154.33,154.15,19.44]
[1718221255341,0.4498,154.32,154.12,3.0]
[1718221255646,0.17,154.28,154.12,3.0]
[1718221255857,39.61,154.28,154.12,3.0]
[1718221256058,9.48228358,154.27,154.12,3.0]
[1718221256269,29.48228358,154.28,154.12,103.0]
[1718221256638,9.48228358,154.29,154.14,100.0]
[1718221256845,0.4498,154.32,154.14,100.0]
[1718221256846,9.48228358,154.3,154.14,100.0]
[1718221257154,9.48228358,154.3,154.12,3.0]
[1718221257155,19.44,154.29,154.12,3.0]
[1718221257354,9.48228358,154.3,154.12,3.0]
[1718221257355,39.61,154.28,154.12,3.0]
[1718221257544,20.17,154.28,154.12,3.0]
[1718221257877,29.48228358,154.28,154.12,103.0]
[1718221258160,9.48228358,154.28,154.12,103.0]
[1718221258362,29.48228358,154.29,154.12,103.0]
[1718221258566,29.48228358,154.29,154.13,20.34]
[1718221258567,9.48228358,154.28,154.13,20.34]
[1718221258766,20.0,154.29,154.14,0.17]
[1718221258978,9.4815385,154.28,154.14,0.17]
[1718221259760,0.17,154.27,154.12,3.0]
[1718221259964,49.0915385,154.27,154.12,3.0]
[1718221260340,0.17,154.24,154.12,3.0]
[1718221260546,28.9215385,154.25,154.16,2.4]
[1718221260756,48.9215385,154.24,154.15,2.4001]
[1718221260962,29.4815385,154.23,154.12,3.0]
[1718221261172,9.4815385,154.25,154.12,103.0]
[1718221261478,9.4815385,154.25,154.14,100.0]
[1718221261764,9.4815385,154.29,154.16,100.0]
[1718221261966,9.4815385,154.3,154.12,3.0]
[1718221262171,9.4815385,154.3,154.13,100.0]
[1718221262349,9.4815385,154.29,154.25,2.3985]
[1718221262549,9.4815385,154.3,154.18,100.0]
[1718221262883,9.49449619,154.35,154.19,20.0]
[1718221263089,28.93449619,154.34,154.16,20.0]
[1718221263372,9.49449619,154.32,154.18,0.17]
[1718221263572,9.49449619,154.33,154.17,0.51]
[1718221263863,9.49449619,154.32,154.15,0.17]
[1718221264064,9.49449619,154.31,154.15,0.51]
[1718221264277,29.49449619,154.32,154.14,20.0]
[1718221264442,9.49449619,154.31,154.14,20.0]
[1718221264642,9.49449619,154.31,154.15,100.0]
[1718221264870,29.66902656,154.32,154.14,20.0]
[1718221265070,48.93902656,154.32,154.14,100.0]
[1718221265268,9.49902656,154.32,154.18,100.0]
[1718221265481,9.49902656,154.32,154.13,120.0]
[1718221265482,9.49902656,154.33,154.2,0.17]
[1718221265651,9.50201563,154.34,154.2,0.34]
[1718221265872,9.50201563,154.35,154.21,0.17]
[1718221266202,28.94201563,154.36,154.21,0.51]
[1718221266504,9.95181563,154.37,154.22,100.0]
[1718221266668,9.50201563,154.37,154.25,100.0]
[1718221266862,9.50201563,154.38,154.26,20.51]
[1718221267071,9.50201563,154.38,154.27,0.34]
[1718221267402,9.50201563,154.41,154.28,0.17]
[1718221267766,9.50201563,154.42,154.28,100.34]
[1718221268000,1.11467397,154.5,154.29,129.3011]
[1718221268001,9.50201563,154.45,154.29,129.3011]
[1718221268179,9.50201563,154.45,154.3,0.34]
[1718221268375,9.50201563,154.47,154.32,0.17]
[1718221268569,0.4498,154.5,154.33,100.0]
[1718221268788,0.4498,154.5,154.34,20.51]
[1718221269100,147.26,154.49,154.29,8.9611]
[1718221269320,27.82,154.41,154.23,15.515]
[1718221269593,27.82,154.41,154.22,21.3876]
[1718221269594,119.8898,154.36,154.15,22.5724]
[1718221269808,19.44,154.32,154.15,22.5724]
[1718221269967,19.44,154.32,154.13,100.0]
[1718221270166,19.44,154.32,154.11,108.5015]
[1718221270167,100.17,154.31,154.11,108.5015]
[1718221270479,100.17,154.31,154.09,1.11921244]
[1718221270480,0.17,154.27,154.09,1.11921244]
[1718221270679,0.17,154.25,154.06,6.409]
[1718221270877,0.68,154.25,154.06,100.0]
[1718221271100,0.17,154.23,154.05,8.4471]
[1718221271271,0.17,154.21,154.05,8.4471]
[1718221271472,39.78,154.21,154.05,8.4471]
[1718221271778,0.4498,154.23,154.16,2.4]
[1718221272000,28.2698,154.29,154.1,100.0]
[1718221272296,28.2698,154.29,154.05,14.8561]
[1718221272297,20.0,154.28,154.08,100.0]
[1718221272488,20.0,154.28,154.2,2.3993]
[1718221272684,20.0,154.28,154.13,0.51]
[1718221272884,0.4498,154.29,154.22,2.3991]
[1718221273070,0.4498,154.29,154.14,0.17]
[1718221273591,27.82,154.33,154.15,100.0]
[1718221273795,0.4498,154.35,154.13,20.51]
[1718221273796,0.4498,154.35,154.17,100.17]
[1718221274119,0.4498,154.35,154.2,200.0]
[1718221274325,0.4498,154.41,154.21,20.68]
[1718221274970,0.4498,154.41,154.25,100.0]
[1718221275180,0.4498,154.41,154.26,0.51]
[1718221275579,28.2698,154.48,154.27,100.17]
[1718221275770,0.4498,154.48,154.28,100.0]
[1718221275975,0.4498,154.48,154.29,20.51]
[1718221276178,0.4498,154.48,154.29,0.51]
[1718221276393,0.4498,154.48,154.24,0.17]
[1718221276394,19.44,154.44,154.24,0.17]
[1718221276594,27.82,154.45,154.28,0.17]
[1718221276903,19.44,154.45,154.29,100.0]
[1718221277105,19.44,154.45,154.3,0.51]
[1718221277306,0.4498,154.48,154.3,0.51]
[1718221277486,0.4498,154.48,154.31,100.17]
[1718221277805,2.590326,154.5,154.35,100.0]
[1718221277991,19.44,154.53,154.36,0.51]
[1718221278580,19.44,154.53,154.33,100.17]
[1718221278581,19.44,154.53,154.33,0.17]
[1718221278782,47.26,154.51,154.31,8.3183]
[1718221278983,47.26,154.47,154.26,6.409]
[1718221279508,47.26,154.47,154.19,127.63383508]
[1718221279509,0.17,154.4,154.17,108.3194]
[1718221279806,0.17,154.4,154.21,100.0]
[1718221280106,0.17,154.4,154.18,100.0]
[1718221280107,0.17,154.38,154.18,100.0]
[1718221280312,20.0,154.38,154.2,100.0]
[1718221280504,20.0,154.38,154.22,100.0]
[1718221280711,20.0,154.38,154.19,100.0]
[1718221280712,0.17,154.41,154.24,100.0]
[1718221281010,110.0,154.53,154.28,200.0]
[1718221281212,0.4424,154.49,154.26,100.0]
[1718221281409,19.44,154.47,154.29,100.0]
[1718221281619,19.44,154.47,154.3,0.68]
[1718221281782,19.44,154.47,154.28,100.0]
[1718221281981,19.44,154.47,154.29,20.68]
[1718221282202,19.44,154.47,154.29,20.51]
[1718221282423,19.44,154.47,154.29,20.0]
[1718221282612,19.44,154.47,154.28,120.17]
[1718221282905,19.44,154.47,154.29,100.17]
[1718221283217,47.26,154.48,154.3,100.17]
[1718221283437,47.26,154.48,154.31,20.17]
[1718221283597,47.26,154.48,154.24,100.0]
[1718221283795,47.26,154.48,154.28,100.0]
[1718221283989,47.26,154.48,154.3,200.0]
[1718221284304,0.4424,154.49,154.32,100.0]
[1718221284689,0.4424,154.49,154.31,20.0]
[1718221284915,19.8824,154.49,154.32,0.68]
[1718221285300,0.4424,154.49,154.32,0.68]
[1718221285501,0.4424,154.49,154.33,100.0]
[1718221285701,0.4424,154.49,154.34,20.51]
[1718221285915,0.4424,154.49,154.34,0.51]
[1718221287010,0.4424,154.49,154.31,20.0]
[1718221287011,0.17,154.48,154.31,20.0]
[1718221287226,20.0,154.48,154.32,0.17]
[1718221287518,20.0,154.48,154.33,100.0]
[1718221287717,20.0,154.48,154.33,200.0]
[1718221287926,0.17,154.48,154.3,8.5725]
[1718221288497,0.68,154.48,154.28,20.9738]
[1718221288794,0.4424,154.49,154.32,100.0]
[1718221289108,0.4424,154.49,154.34,100.0]
[1718221289290,0.4424,154.49,154.31,106.409]
[1718221289491,0.4424,154.49,154.28,20.9738]
[1718221289818,0.4424,154.49,154.31,100.0]
[1718221289994,0.4424,154.49,154.29,106.409]
[1718221290197,0.4424,154.49,154.31,100.0]
[1718221290496,0.4424,154.49,154.29,6.409]
[1718221290497,0.4424,154.49,154.29,106.409]
[1718221290699,0.4424,154.49,154.3,0.68]
[1718221290929,0.4424,154.49,154.28,20.9738]
[1718221291132,19.44,154.45,154.21,120.8508]
[1718221291325,0.17,154.41,154.21,120.8508]
[1718221291530,19.78,154.41,154.2,9.0622]
[1718221291843,19.61,154.37,154.15,40.00801612]
[1718221292047,19.61,154.35,154.15,135.8886]
[1718221292257,19.61,154.35,154.15,35.8886]
[1718221292543,19.44,154.33,154.15,35.8886]
[1718221292858,0.17,154.32,154.15,15.0378]
[1718221293145,0.17,154.3,154.12,3.0]
[1718221293331,0.17,154.28,154.12,3.0]
[1718221293509,0.17,154.26,154.12,3.0]
[1718221293712,0.4424,154.29,154.12,103.0]
[1718221293907,0.4424,154.29,154.12,203.0]
[1718221294143,0.4424,154.29,154.15,100.0]
[1718221294439,0.4424,154.29,154.12,30.82]
[1718221294440,0.4424,154.29,154.13,6.409]
[1718221294806,0.4424,154.29,154.14,100.17]
[1718221295005,0.4424,154.29,154.15,0.51]
[1718221295949,0.4424,154.29,154.12,3.0]
[1718221295950,0.17,154.28,154.12,3.0]
[1718221296114,39.61,154.28,154.12,3.0]
[1718221296443,20.0,154.27,154.12,3.0]
[1718221296618,20.0,154.27,154.12,103.0]
[1718221296814,0.4424,154.29,154.12,103.0]
[1718221297021,20.4424,154.29,154.14,100.0]
[1718221297234,0.4424,154.29,154.15,45.17]
[1718221297625,0.4424,154.29,154.15,100.17]
[1718221297948,0.4424,154.36,154.19,0.17]
[1718221298119,0.4424,154.36,154.16,65.0]
[1718221298318,0.4424,154.36,154.17,0.51]
[1718221298519,0.4424,154.36,154.16,65.0]
[1718221298832,0.4424,154.36,154.17,0.17]
[1718221299013,0.4424,154.36,154.17,0.51]
[1718221299219,0.4424,154.36,154.18,100.17]
[1718221299449,0.4424,154.36,154.19,65.17]
[1718221299620,0.4424,154.36,154.19,65.0]
[1718221299824,0.4424,154.36,154.2,0.34]
[1718221300053,0.4424,154.36,154.21,0.34]
[1718221300349,0.4424,154.36,154.22,0.34]
[1718221300554,0.4424,154.36,154.23,0.17]
[1718221300763,0.4424,154.36,154.22,0.34]
[1718221300929,0.4424,154.36,154.21,45.0]
[1718221301738,19.8824,154.36,154.15,6.409]
[1718221302063,0.17,154.33,154.16,26.409]
[1718221302220,0.17,154.33,154.16,126.409]
[1718221302221,0.34,154.33,154.16,126.409]
[1718221302557,39.61,154.33,154.16,26.409]
[1718221302729,0.17,154.31,154.16,6.409]
[1718221303059,39.44,154.33,154.16,6.409]
[1718221303722,0.17,154.32,154.16,6.409]
[1718221303915,0.51,154.32,154.12,3.0]
[1718221304121,0.17,154.3,154.12,3.0]
[1718221304331,0.17,154.28,154.12,3.0]
[1718221304618,39.61,154.28,154.12,3.0]
[1718221306233,20.0,154.28,154.12,3.0]
[1718221306436,0.17,154.29,154.12,68.0]
[1718221306943,20.0,154.3,154.12,68.0]
[1718221307246,19.44,154.35,154.15,0.17]
[1718221307449,19.44,154.35,154.16,0.17]
[1718221307620,19.44,154.35,154.16,0.51]
[1718221307823,19.44,154.35,154.13,0.17]
[1718221308048,19.44,154.35,154.13,0.68]
[1718221308524,0.17,154.32,154.14,100.0]
[1718221308725,40.12,154.32,154.15,45.51]
[1718221308942,0.17,154.32,154.16,20.0]
[1718221309249,20.0,154.34,154.17,45.51]
[1718221309451,0.4424,154.36,154.18,120.17]
[1718221309756,0.4424,154.36,154.2,100.17]
[1718221310056,0.4424,154.36,154.19,45.51]
[1718221310057,0.4424,154.36,154.24,0.17]
[1718221310259,0.4424,154.36,154.24,0.51]
[1718221310422,0.4424,154.36,154.21,0.51]
[1718221310745,0.4424,154.36,154.21,51.919]
[1718221311063,0.4424,154.36,154.22,20.17]
[1718221311226,0.4424,154.36,154.23,45.51]
[1718221311829,0.4424,154.36,154.23,45.0]
[1718221312031,19.8824,154.36,154.23,45.0]
[1718221312256,39.61,154.35,154.19,0.17]
[1718221312444,39.61,154.35,154.18,0.17]
[1718221312634,0.17,154.34,154.16,20.0]
[1718221312828,0.17,154.34,154.15,6.409]
[1718221313133,0.17,154.33,154.16,100.0]
[1718221313439,39.61,154.35,154.16,200.0]
[1718221313642,39.61,154.35,154.15,6.409]
[1718221313824,39.61,154.35,154.12,52.1914]
[1718221313825,0.17,154.33,154.12,24.3714]
[1718221314357,0.17,154.33,154.15,100.0]
[1718221314652,0.17,154.33,154.13,100.0]
[1718221315043,0.17,154.33,154.12,30.7804]
[1718221315044,19.61,154.33,154.12,30.7804]
[1718221315353,0.17,154.3,154.13,100.0]
[1718221315553,39.44,154.32,154.15,100.0]
[1718221315765,39.44,154.32,154.14,100.0]
[1718221315946,39.44,154.32,154.12,30.7804]
[1718221316133,0.34,154.31,154.12,30.7804]
[1718221316338,0.17,154.31,154.13,20.0]
[1718221316649,19.44,154.32,154.14,100.0]
[1718221316956,0.68,154.31,154.15,20.0]
[1718221317482,0.68,154.31,154.13,20.0]
[1718221317683,0.68,154.31,154.13,120.0]
[1718221317851,0.68,154.31,154.13,20.0]
[1718221318051,0.68,154.31,154.13,120.0]
[1718221318287,20.12,154.31,154.13,120.0]
[1718221318579,19.61,154.29,154.13,20.0]
[1718221318761,20.4288,154.28,154.12,9.409]
[1718221319094,0.17,154.27,154.12,9.409]
[1718221319378,0.17,154.24,154.12,3.0]
[1718221319580,0.34,154.24,154.12,3.0]
[1718221319870,0.17,154.24,154.12,3.0]
[1718221320078,0.17,154.22,154.12,3.0]
[1718221320282,39.95,154.22,154.12,3.0]
[1718221320480,39.95,154.22,154.13,2.4005]
[1718221320669,39.78,154.22,154.12,3.0]
[1718221320865,39.61,154.22,154.12,3.0]
[1718221321080,0.17,154.2,154.12,5.4007]
[1718221321384,0.17,154.2,154.13,2.4005]
[1718221321589,39.44,154.22,154.14,2.4003]
[1718221321770,39.44,154.22,154.12,3.0]
[1718221322085,19.44,154.25,154.12,3.0]
[1718221322971,19.44,154.24,154.12,3.0]
[1718221323290,0.17,154.23,154.12,3.0]
[1718221323656,0.68,154.23,154.14,2.4003]
[1718221323857,0.68,154.23,154.13,2.4005]
[1718221324080,20.12,154.23,154.12,3.0]
[1718221324569,47.43,154.21,154.12,3.0]
[1718221324783,0.17,154.18,154.12,3.0]
[1718221324997,0.17,154.16,154.12,3.0]
[1718221325598,0.5988,154.14,154.12,3.0]
[1718221325823,0.17,154.12,153.99,19.44]
[1718221325977,39.61,154.12,154.04,2.4019]
[1718221326292,39.61,154.12,153.99,19.44]
[1718221326293,20.17,154.12,153.99,19.44]
[1718221326495,0.17,154.08,153.99,19.44]
[1718221326702,0.17,154.08,153.98,0.04039078]
[1718221326703,0.17,154.06,153.98,0.04039078]
[1718221326925,148.1,154.06,153.98,0.04039078]
[1718221327065,119.44,154.04,153.98,0.04039078]
[1718221327269,0.4288,154.02,153.88,0.2]
[1718221327876,100.0,154.01,153.88,0.2]
[1718221328080,28.19068438,154.0,153.88,0.2]
[1718221328282,0.5988,154.08,153.88,0.2]
[1718221328507,0.5988,154.08,153.89,100.0]
[1718221328508,0.4288,154.08,153.89,100.0]
[1718221328809,5.09524357,154.13,153.95,100.0]
[1718221328972,0.4288,154.14,153.98,100.0]
[1718221329312,0.4288,154.22,154.04,100.0]
[1718221329471,5.68612717,154.22,154.05,20.0]
[1718221329868,0.4288,154.22,154.14,2.4002]
[1718221330094,0.4288,154.22,154.06,100.51]
[1718221330294,0.4288,154.27,154.1,128.1]
[1718221330594,0.4288,154.27,154.11,20.34]
[1718221330794,0.4288,154.27,154.11,20.0]
[1718221331000,0.4288,154.27,154.13,100.0]
[1718221331182,0.4288,154.34,154.16,0.17]
[1718221331383,0.4288,154.34,154.17,100.0]
[1718221331593,0.4288,154.34,154.14,0.34]
[1718221331776,0.4288,154.34,154.19,0.17]
[1718221331970,0.4288,154.34,154.19,20.0]
[1718221332181,0.4288,154.34,154.19,120.0]
[1718221332392,0.4288,154.4,154.22,0.17]
[1718221332578,0.4288,154.4,154.24,100.17]
[1718221332791,25.920522,154.46,154.22,20.51]
[1718221332792,1.11988867,154.47,154.26,0.17]
[1718221333104,0.4288,154.48,154.27,100.0]
[1718221333301,0.4288,154.48,154.29,0.17]
[1718221333507,0.4288,154.48,154.25,28.1]
[1718221333508,19.44,154.44,154.25,28.1]
[1718221333673,28.5288,154.48,154.23,100.17]
[1718221333997,28.5288,154.48,154.21,28.1]
[1718221333998,0.4288,154.48,154.28,0.17]
[1718221334310,0.4288,154.48,154.29,28.1]
[1718221334477,0.4288,154.48,154.32,0.17]
[1718221334674,60.18904732,154.64,154.34,0.17]
[1718221334675,6.643218,154.49,154.34,0.17]
[1718221334892,1.11920718,154.56,154.38,28.1]
[1718221335199,0.4288,154.57,154.39,20.51]
[1718221335699,0.4288,154.57,154.39,20.17]
[1718221335935,0.4288,154.57,154.31,10.0]
[1718221335936,100.0,154.56,154.32,128.1]
[1718221336090,100.0,154.52,154.28,50.7753]
[1718221336287,119.44,154.48,154.28,22.6753]
[1718221336524,19.44,154.45,154.24,36.4277]
[1718221336817,128.1,154.52,154.26,100.0]
[1718221337111,128.1,154.52,154.24,36.4277]
[1718221337112,0.17,154.46,154.24,136.4277]
[1718221337274,0.68,154.46,154.28,100.0]
[1718221337473,128.1,154.52,154.24,36.4277]
[1718221337474,28.1,154.52,154.32,100.0]
[1718221337676,29.9516,154.56,154.34,100.0]
[1718221337980,1.8516,154.56,154.34,200.0]
[1718221338173,1.8516,154.56,154.37,0.17]
[1718221338378,0.4288,154.57,154.41,100.17]